fUST/lending_fUST_20260516
["ID","MTS","AMOUNT","RATE_DAILY","PERIOD"]
[422371401,1778889043000,-323.32806077,0.0001178,2]
[422371399,1778889043000,-500.0,0.0001178,2]
[422371395,1778889043000,-500.0,0.0001178,2]
[422371424,1778889043000,-617.52,0.0001178,2]
[422371403,1778889043000,-541.48,0.0001178,2]
[422371400,1778889043000,-500.0,0.0001178,2]
[422371416,1778889043000,-621.63,0.0001178,2]
[422371428,1778889043000,-528.76,0.0001178,2]
[422371423,1778889043000,-3313.96,0.0001178,2]
[422371426,1778889043000,-1435.36,0.0001178,2]
[422371421,1778889043000,-500.0,0.0001178,2]
[422371427,1778889043000,-1046.52,0.0001178,2]
[422371425,1778889043000,-1668.01,0.0001178,2]
[422371419,1778889043000,-845.37,0.0001178,2]
[422371430,1778889043000,-936.17,0.0001178,2]
[422371431,1778889043000,-500.0,0.0001178,2]
[422371432,1778889043000,-1371.39,0.0001178,2]
[422371442,1778889043000,-1668.17,0.0001178,2]
[422371433,1778889043000,-500.0,0.0001178,2]
[422371440,1778889043000,-4382.9,0.0001178,2]
[422371397,1778889043000,-799.49,0.0001178,2]
[422371438,1778889043000,-1376.69,0.0001178,2]
[422371418,1778889043000,-521.88,0.0001178,2]
[422371412,1778889043000,-625.76,0.0001178,2]
[422371368,1778889043000,-500.0,0.0001178,2]
[422371414,1778889043000,-500.0,0.0001178,2]
[422371434,1778889043000,-544.02,0.0001178,2]
[422371352,1778889043000,-500.0,0.0001178,2]
[422371353,1778889043000,-500.0,0.0001178,2]
[422371355,1778889043000,-672.04,0.0001178,2]
[422371356,1778889043000,-500.0,0.0001178,2]
[422371366,1778889043000,-500.0,0.0001178,2]
[422371354,1778889043000,-500.0,0.0001178,2]
[422371360,1778889043000,-500.0,0.0001178,2]
[422371362,1778889043000,-607.13,0.0001178,2]
[422371365,1778889043000,-500.0,0.0001178,2]
[422371364,1778889043000,-525.61,0.0001178,2]
[422371358,1778889043000,-881.4,0.0001178,2]
[422371367,1778889043000,-500.0,0.0001178,2]
[422371359,1778889043000,-869.11,0.0001178,2]
[422371408,1778889043000,-930.7,0.0001178,2]
[422371361,1778889043000,-505.9,0.0001178,2]
[422371369,1778889043000,-500.0,0.0001178,2]
[422371380,1778889043000,-500.0,0.0001178,2]
[422371382,1778889043000,-500.0,0.0001178,2]
[422371384,1778889043000,-814.91,0.0001178,2]
[422371374,1778889043000,-500.0,0.0001178,2]
[422371372,1778889043000,-549.42,0.0001178,2]
[422371377,1778889043000,-587.98,0.0001178,2]
[422371386,1778889043000,-531.25,0.0001178,2]
[422371371,1778889043000,-500.0,0.0001178,2]
[422371370,1778889043000,-500.0,0.0001178,2]
[422371390,1778889043000,-1382.74,0.0001178,2]
[422371389,1778889043000,-500.0,0.0001178,2]
[422371392,1778889043000,-629.14,0.0001178,2]
[422371410,1778889043000,-1493.38,0.0001178,2]
[422371357,1778889043000,-500.0,0.0001178,2]
[422371441,1778889043000,-500.0,0.0001178,2]
[422371490,1778889043000,-2160.47,0.0001178,2]
[422371437,1778889043000,-1528.02,0.0001178,2]
[422371476,1778889043000,-6250.19,0.0001178,2]
[422371474,1778889043000,-686.46,0.0001178,2]
[422371477,1778889043000,-1786.95,0.0001178,2]
[422371478,1778889043000,-623.01,0.0001178,2]
[422371479,1778889043000,-1416.21,0.0001178,2]
[422371472,1778889043000,-32191.41,0.0001178,2]
[422371482,1778889043000,-360.99834374,0.0001178,2]
[422371483,1778889043000,-2028.77,0.0001178,2]
[422371485,1778889043000,-2554.49,0.0001178,2]
[422371480,1778889043000,-906.0,0.0001178,2]
[422371497,1778889043000,-6089.082373,0.00011819,2]
[422371501,1778889043000,-9333.204879,0.00011819,2]
[422371499,1778889043000,-160.0,0.00011819,2]
[422371498,1778889043000,-12018.164746,0.00011819,2]
[422371500,1778889043000,-4746.602439,0.00011819,2]
[422371507,1778889043000,-1683.567446,0.00011878,2]
[422371492,1778889043000,-500.0,0.0001178,2]
[422371494,1778889043000,-500.0,0.00011784,2]
[422371495,1778889043000,-160.0,0.00011813,4]
[422371491,1778889043000,-4054.46,0.0001178,2]
[422371493,1778889043000,-2595.57,0.0001178,2]
[422371489,1778889043000,-735.99,0.0001178,2]
[422371496,1778889043000,-160.0,0.00011819,2]
[422371502,1778889043000,-160.0,0.00011819,2]
[422371506,1778889043000,-160.0,0.00011878,2]
[422371508,1778889043000,-3207.134892,0.00011878,2]
[422371505,1778889043000,-1577.66224829,0.00011847,6]
[422371504,1778889043000,-4226.812975,0.00011819,2]
[422371503,1778889043000,-2193.406487,0.00011819,2]
[422371475,1778889043000,-1908.77,0.0001178,2]
[422371473,1778889043000,-807.26,0.0001178,2]
[422371487,1778889043000,-4575.68,0.0001178,2]
[422371463,1778889043000,-2726.88,0.0001178,2]
[422371443,1778889043000,-548.61,0.0001178,2]
[422371429,1778889043000,-500.0,0.0001178,2]
[422371436,1778889043000,-500.0,0.0001178,2]
[422371471,1778889043000,-500.0,0.0001178,2]
[422371444,1778889043000,-5036.7,0.0001178,2]
[422371448,1778889043000,-1380.24,0.0001178,2]
[422371447,1778889043000,-811.64,0.0001178,2]
[422371446,1778889043000,-635.1294673,0.0001178,2]
[422371445,1778889043000,-871.29,0.0001178,2]
[422371450,1778889043000,-4127.74,0.0001178,2]
[422371452,1778889043000,-1021.0,0.0001178,2]
[422371451,1778889043000,-214.18765688,0.0001178,2]
[422371456,1778889043000,-500.0,0.0001178,2]
[422371455,1778889043000,-500.0,0.0001178,2]
[422371454,1778889043000,-4344.7,0.0001178,2]
[422371439,1778889043000,-500.0,0.0001178,2]
[422371453,1778889043000,-500.0,0.0001178,2]
[422371449,1778889043000,-1410.14,0.0001178,2]
[422371461,1778889043000,-1789.66,0.0001178,2]
[422371465,1778889043000,-1570.05,0.0001178,2]
[422371462,1778889043000,-500.0,0.0001178,2]
[422371459,1778889043000,-500.0,0.0001178,2]
[422371466,1778889043000,-3780.33,0.0001178,2]
[422371464,1778889043000,-500.0,0.0001178,2]
[422371435,1778889043000,-1298.23,0.0001178,2]
[422371457,1778889043000,-2015.84,0.0001178,2]
[422371460,1778889043000,-500.0,0.0001178,2]
[422371470,1778889043000,-1355.62,0.0001178,2]
[422371468,1778889043000,-2701.59,0.0001178,2]
[422371469,1778889043000,-1733.94,0.0001178,2]
[422371467,1778889043000,-897.79,0.0001178,2]
[422371458,1778889043000,-500.0,0.0001178,2]
[422371515,1778889044000,-1721.7,0.000119,2]
[422371520,1778889044000,-151.35,0.00012,2]
[422371523,1778889044000,-151.35,0.00012,2]
[422371511,1778889044000,-3391.995259,0.00011878,2]
[422371513,1778889044000,-18716.59296531,0.000119,2]
[422371512,1778889044000,-2032.66777812,0.00011887,2]
[422371510,1778889044000,-1775.997629,0.00011878,2]
[422371509,1778889044000,-160.0,0.00011878,2]
[422371525,1778889044000,-152.62,0.00012,2]
[422371514,1778889044000,-40743.0,0.000119,2]
[422371521,1778889044000,-151.35,0.00012,2]
[422371517,1778889044000,-222.0,0.0001193,2]
[422371519,1778889044000,-426.0,0.00011975,2]
[422371518,1778889044000,-84178.61644538,0.0001196,2]
[422371522,1778889044000,-151.35,0.00012,2]
[422371526,1778889044000,-1148498.81795769,0.00012,2]
[422371528,1778889044000,-21691.77938074,0.00012,2]
[422371527,1778889044000,-476220.92729502,0.00012,2]
[422371529,1778889044000,-530.67883054,0.00012,2]
[422371530,1778889044000,-458.98683,0.00012,2]
[422371516,1778889044000,-200.0,0.0001191,2]
[422371524,1778889044000,-150.94,0.00012,2]
[422371540,1778889047000,-1479.32787555,0.0001112,2]
[422371539,1778889047000,-514.6,0.00010958,2]
[422371561,1778889632000,200.0,0.00017781,120]
[422371562,1778889691000,200.0,0.00017137,120]
[422371563,1778889870000,200.0,0.00017133,120]
[422371564,1778889932000,200.0,0.00017639,120]
[422371567,1778890092000,199.23,0.00018493,120]
[422371573,1778890231000,200.0,0.00018314,120]
[422371607,1778890232000,-333.53912894,9.424e-05,2]
[422371597,1778890232000,-764.52199928,8.989e-05,2]
[422371595,1778890232000,-5000.0,8.899e-05,2]
[422371603,1778890232000,-586.55451624,9.424e-05,2]
[422371601,1778890232000,-300.0,9.424e-05,2]
[422371599,1778890232000,-326.82808252,9.312e-05,2]
[422371919,1778890241000,-567.55081426,9.425e-05,2]
[422371918,1778890241000,-80.90635482,9.424e-05,2]
[422371925,1778890244000,-1647.57010326,0.0001,2]
[422371929,1778890244000,-353.00532256,0.00010858,2]
[422371927,1778890244000,-161.65638237,0.00010846,2]
[422371926,1778890244000,-366.08748706,0.0001,2]
[422371928,1778890244000,-160.0,0.00010846,2]
[422371924,1778890244000,-5275.48257792,9.425e-05,2]
[422371930,1778890244000,-1268.0,0.00010858,2]
[422371940,1778890247000,-62170.32796852,0.00010858,2]
[422371939,1778890247000,-160.0,0.00010846,2]
[422371949,1778890351000,200.0,0.00014007,120]
[422371951,1778890410000,200.0,0.00016025,120]
[422371952,1778890471000,200.0,0.0001562,120]
[422371953,1778890710000,200.0,0.00015371,120]
[422371954,1778890770000,200.0,0.00015237,120]
[422371955,1778890891000,200.0,0.0001756,120]
[422371956,1778891131000,200.0,0.00016694,120]
[422371959,1778891250000,200.0,0.00017477,120]
[422371968,1778891371000,200.0,0.00016662,120]
[422371994,1778891431000,-719.76,9.51e-05,2]
[422372139,1778891437000,-3227.57874916,9.51e-05,2]
[422372263,1778891438000,-500.0,0.00010958,2]
[422372221,1778891438000,-500.0,0.00010958,2]
[422372231,1778891438000,-500.0,0.00010958,2]
[422372235,1778891438000,-569.83883022,0.00010958,2]
[422372229,1778891438000,-613.33,0.00010958,2]
[422372233,1778891438000,-500.0,0.00010958,2]
[422372225,1778891438000,-676.36,0.00010958,2]
[422372227,1778891438000,-500.0,0.00010958,2]
[422372237,1778891438000,-500.0,0.00010958,2]
[422372223,1778891438000,-394.1803614,0.00010958,2]
[422372239,1778891438000,-500.0,0.00010958,2]
[422372241,1778891438000,-500.0,0.00010958,2]
[422372245,1778891438000,-500.0,0.00010958,2]
[422372219,1778891438000,-500.0,0.00010958,2]
[422372243,1778891438000,-607.34,0.00010958,2]
[422372247,1778891438000,-500.0,0.00010958,2]
[422372251,1778891438000,-500.0,0.00010958,2]
[422372257,1778891438000,-500.0,0.00010958,2]
[422372249,1778891438000,-500.0,0.00010958,2]
[422372259,1778891438000,-560.03,0.00010958,2]
[422372261,1778891438000,-1152.28,0.00010958,2]
[422372253,1778891438000,-679.09,0.00010958,2]
[422372269,1778891438000,-500.0,0.00010958,2]
[422372267,1778891438000,-666.24,0.00010958,2]
[422372265,1778891438000,-500.0,0.00010958,2]
[422372255,1778891438000,-280.02016535,0.00010958,2]
[422372217,1778891438000,-500.0,0.00010958,2]
[422372186,1778891438000,-500.0,0.00010957,2]
[422372198,1778891438000,-500.0,0.00010957,2]
[422372271,1778891438000,-500.0,0.00010958,2]
[422372161,1778891438000,-327.59985925,9.802e-05,2]
[422372164,1778891438000,-181.83,0.0001,2]
[422372160,1778891438000,-1052.66125084,9.51e-05,2]
[422372176,1778891438000,-232.96127927,0.00010951,2]
[422372182,1778891438000,-500.0,0.00010957,2]
[422372178,1778891438000,-279.67629781,0.00010957,2]
[422372180,1778891438000,-500.0,0.00010957,2]
[422372165,1778891438000,-300.0,0.00010657,2]
[422372184,1778891438000,-232.17882897,0.00010957,2]
[422372168,1778891438000,-6053.8448033,0.00010658,2]
[422372173,1778891438000,-161.65638237,0.00010737,2]
[422372200,1778891438000,-500.0,0.00010957,2]
[422372170,1778891438000,-5838.61062231,0.00010658,2]
[422372190,1778891438000,-500.0,0.00010957,2]
[422372192,1778891438000,-500.0,0.00010957,2]
[422372202,1778891438000,-500.0,0.00010957,2]
[422372203,1778891438000,-500.0,0.00010957,2]
[422372209,1778891438000,-1372.4742,0.00010958,2]
[422372206,1778891438000,-500.0,0.00010957,2]
[422372207,1778891438000,-550.0,0.00010957,2]
[422372211,1778891438000,-980.3574,0.00010958,2]
[422372213,1778891438000,-500.0,0.00010958,2]
[422372215,1778891438000,-500.0,0.00010958,2]
[422372194,1778891438000,-500.0,0.00010957,2]
[422372196,1778891438000,-500.0,0.00010957,2]
[422372188,1778891438000,-500.0,0.00010957,2]
[422372273,1778891438000,-734.5,0.00010958,2]
[422372383,1778891438000,-1444.95,0.00010958,2]
[422372275,1778891438000,-500.0,0.00010958,2]
[422372343,1778891438000,-500.0,0.00010958,2]
[422372331,1778891438000,-1196.14,0.00010958,2]
[422372335,1778891438000,-1147.24,0.00010958,2]
[422372341,1778891438000,-3652.42,0.00010958,2]
[422372347,1778891438000,-500.0,0.00010958,2]
[422372351,1778891438000,-1273.35,0.00010958,2]
[422372349,1778891438000,-1390.01,0.00010958,2]
[422372353,1778891438000,-500.0,0.00010958,2]
[422372357,1778891438000,-1390.14,0.00010958,2]
[422372359,1778891438000,-521.47,0.00010958,2]
[422372361,1778891438000,-4197.25,0.00010958,2]
[422372363,1778891438000,-1679.87,0.00010958,2]
[422372339,1778891438000,-500.0,0.00010958,2]
[422372355,1778891438000,-850.83,0.00010958,2]
[422372367,1778891438000,-3439.78,0.00010958,2]
[422372369,1778891438000,-500.0,0.00010958,2]
[422372376,1778891438000,-3150.27,0.00010958,2]
[422372365,1778891438000,-1081.86,0.00010958,2]
[422372372,1778891438000,-570.8432347,0.00010958,2]
[422372378,1778891438000,-500.0,0.00010958,2]
[422372392,1778891438000,-500.0,0.00010958,2]
[422372380,1778891438000,-500.0,0.00010958,2]
[422372390,1778891438000,-500.0,0.00010958,2]
[422372384,1778891438000,-1175.12,0.00010958,2]
[422372386,1778891438000,-500.0,0.00010958,2]
[422372388,1778891438000,-3620.59,0.00010958,2]
[422372374,1778891438000,-1150.2,0.00010958,2]
[422372337,1778891438000,-500.0,0.00010958,2]
[422372277,1778891438000,-500.0,0.00010958,2]
[422372327,1778891438000,-500.0,0.00010958,2]
[422372281,1778891438000,-775.58,0.00010958,2]
[422372279,1778891438000,-214.70439757,0.00010958,2]
[422372283,1778891438000,-1244.48,0.00010958,2]
[422372291,1778891438000,-724.26,0.00010958,2]
[422372285,1778891438000,-500.0,0.00010958,2]
[422372289,1778891438000,-350.63295061,0.00010958,2]
[422372287,1778891438000,-500.0,0.00010958,2]
[422372345,1778891438000,-726.07,0.00010958,2]
[422372293,1778891438000,-500.0,0.00010958,2]
[422372295,1778891438000,-1305.76,0.00010958,2]
[422372301,1778891438000,-518.02,0.00010958,2]
[422372303,1778891438000,-500.0,0.00010958,2]
[422372305,1778891438000,-500.0,0.00010958,2]
[422372297,1778891438000,-500.0,0.00010958,2]
[422372317,1778891438000,-500.0,0.00010958,2]
[422372307,1778891438000,-704.48,0.00010958,2]
[422372333,1778891438000,-500.0,0.00010958,2]
[422372329,1778891438000,-780.15,0.00010958,2]
[422372325,1778891438000,-524.29,0.00010958,2]
[422372311,1778891438000,-500.0,0.00010958,2]
[422372323,1778891438000,-1552.29,0.00010958,2]
[422372299,1778891438000,-505.94,0.00010958,2]
[422372319,1778891438000,-500.0,0.00010958,2]
[422372313,1778891438000,-500.0,0.00010958,2]
[422372309,1778891438000,-500.0,0.00010958,2]
[422372321,1778891438000,-1142.83,0.00010958,2]
[422372315,1778891438000,-872.1,0.00010958,2]
[422372437,1778891439000,-555.23,0.00010959,2]
[422372442,1778891439000,-250.0,0.00011171,2]
[422372443,1778891439000,-150.152,0.00011171,2]
[422372439,1778891439000,-1934.60582481,0.00010985,5]
[422372446,1778891439000,-3613.63160554,0.00011191,2]
[422372441,1778891439000,-150.358,0.00011171,2]
[422372445,1778891439000,-600.0,0.00011176,2]
[422372447,1778891439000,-5646.29938366,0.00011191,2]
[422372440,1778891439000,-456.3760811,0.00011055,2]
[422372438,1778891439000,-218.58,0.00010959,2]
[422372434,1778891439000,-555.23,0.00010959,2]
[422372449,1778891439000,-1372.4742,0.00011232,2]
[422372467,1778891439000,-443.63915487,0.00011232,2]
[422372458,1778891439000,-613.33,0.00011232,2]
[422372451,1778891439000,-500.0,0.00011232,2]
[422372448,1778891439000,-8122.54044136,0.00011191,2]
[422372450,1778891439000,-980.3574,0.00011232,2]
[422372462,1778891439000,-500.0,0.00011232,2]
[422372453,1778891439000,-500.0,0.00011232,2]
[422372452,1778891439000,-500.0,0.00011232,2]
[422372461,1778891439000,-500.0,0.00011232,2]
[422372454,1778891439000,-500.0,0.00011232,2]
[422372455,1778891439000,-500.0,0.00011232,2]
[422372457,1778891439000,-157.77583514,0.00011232,2]
[422372456,1778891439000,-676.36,0.00011232,2]
[422372436,1778891439000,-555.23,0.00010959,2]
[422372459,1778891439000,-500.0,0.00011232,2]
[422372435,1778891439000,-555.23,0.00010959,2]
[422372421,1778891439000,-1690.65,0.00010958,2]
[422372424,1778891439000,-3378.71,0.00010958,2]
[422372466,1778891439000,-500.0,0.00011232,2]
[422372394,1778891439000,-2272.4,0.00010958,2]
[422372396,1778891439000,-748.15,0.00010958,2]
[422372398,1778891439000,-1491.38,0.00010958,2]
[422372401,1778891439000,-1180.18,0.00010958,2]
[422372403,1778891439000,-26826.17,0.00010958,2]
[422372405,1778891439000,-1308.38,0.00010958,2]
[422372407,1778891439000,-672.72,0.00010958,2]
[422372419,1778891439000,-2128.74,0.00010958,2]
[422372418,1778891439000,-1489.12,0.00010958,2]
[422372412,1778891439000,-1129.69,0.00010958,2]
[422372410,1778891439000,-5208.49,0.00010958,2]
[422372430,1778891439000,-2761.64,0.00010958,2]
[422372416,1778891439000,-1590.64,0.00010958,2]
[422372413,1778891439000,-2251.32,0.00010958,2]
[422372433,1778891439000,-555.23,0.00010959,2]
[422372431,1778891439000,-500.0,0.00010958,2]
[422372432,1778891439000,-500.0,0.00010958,2]
[422372422,1778891439000,-1387.51,0.00010958,2]
[422372420,1778891439000,-519.18,0.00010958,2]
[422372427,1778891439000,-500.0,0.00010958,2]
[422372426,1778891439000,-500.0,0.00010958,2]
[422372425,1778891439000,-1800.39,0.00010958,2]
[422372428,1778891439000,-3813.06,0.00010958,2]
[422372423,1778891439000,-755.0,0.00010958,2]
[422372429,1778891439000,-500.0,0.00010958,2]
[422372417,1778891439000,-572.05,0.00010958,2]
[422372464,1778891439000,-500.0,0.00011232,2]
[422372471,1778891439000,-500.0,0.00011232,2]
[422372470,1778891439000,-679.09,0.00011232,2]
[422372496,1778891439000,-458.3481298,0.00011232,2]
[422372498,1778891439000,-872.1,0.00011232,2]
[422372500,1778891439000,-500.0,0.00011232,2]
[422372499,1778891439000,-500.0,0.00011232,2]
[422372501,1778891439000,-1142.83,0.00011232,2]
[422372504,1778891439000,-500.0,0.00011232,2]
[422372505,1778891439000,-780.15,0.00011232,2]
[422372506,1778891439000,-1196.14,0.00011232,2]
[422372507,1778891439000,-500.0,0.00011232,2]
[422372509,1778891439000,-500.0,0.00011232,2]
[422372508,1778891439000,-1147.24,0.00011232,2]
[422372510,1778891439000,-500.0,0.00011232,2]
[422372511,1778891439000,-3652.42,0.00011232,2]
[422372513,1778891439000,-500.0,0.00011232,2]
[422372515,1778891439000,-500.0,0.00011232,2]
[422372514,1778891439000,-726.07,0.00011232,2]
[422372522,1778891439000,-4197.25,0.00011232,2]
[422372516,1778891439000,-1390.01,0.00011232,2]
[422372518,1778891439000,-500.0,0.00011232,2]
[422372521,1778891439000,-521.47,0.00011232,2]
[422372517,1778891439000,-1273.35,0.00011232,2]
[422372520,1778891439000,-1390.14,0.00011232,2]
[422372475,1778891439000,-500.0,0.00011232,2]
[422372523,1778891439000,-1679.87,0.00011232,2]
[422372524,1778891439000,-1081.86,0.00011232,2]
[422372525,1778891439000,-3439.78,0.00011232,2]
[422372526,1778891439000,-500.0,0.00011232,2]
[422372497,1778891439000,-500.0,0.00011232,2]
[422372503,1778891439000,-524.29,0.00011232,2]
[422372519,1778891439000,-850.83,0.00011232,2]
[422372494,1778891439000,-704.48,0.00011232,2]
[422372495,1778891439000,-500.0,0.00011232,2]
[422372465,1778891439000,-607.34,0.00011232,2]
[422372469,1778891439000,-500.0,0.00011232,2]
[422372463,1778891439000,-500.0,0.00011232,2]
[422372468,1778891439000,-500.0,0.00011232,2]
[422372474,1778891439000,-500.0,0.00011232,2]
[422372472,1778891439000,-560.03,0.00011232,2]
[422372473,1778891439000,-1152.28,0.00011232,2]
[422372477,1778891439000,-500.0,0.00011232,2]
[422372480,1778891439000,-500.0,0.00011232,2]
[422372488,1778891439000,-1305.76,0.00011232,2]
[422372479,1778891439000,-734.5,0.00011232,2]
[422372481,1778891439000,-500.0,0.00011232,2]
[422372476,1778891439000,-666.24,0.00011232,2]
[422372490,1778891439000,-505.94,0.00011232,2]
[422372478,1778891439000,-500.0,0.00011232,2]
[422372493,1778891439000,-296.19580689,0.00011232,2]
[422372502,1778891439000,-1552.29,0.00011232,2]
[422372492,1778891439000,-500.0,0.00011232,2]
[422372487,1778891439000,-500.0,0.00011232,2]
[422372491,1778891439000,-518.02,0.00011232,2]
[422372484,1778891439000,-500.0,0.00011232,2]
[422372483,1778891439000,-1244.48,0.00011232,2]
[422372489,1778891439000,-352.05566168,0.00011232,2]
[422372485,1778891439000,-500.0,0.00011232,2]
[422372486,1778891439000,-724.26,0.00011232,2]
[422372482,1778891439000,-775.58,0.00011232,2]
[422372560,1778891440000,-609.22870735,0.00011232,2]
[422372573,1778891440000,-1647.1,0.000114,2]
[422372554,1778891440000,-755.0,0.00011232,2]
[422372556,1778891440000,-1800.39,0.00011232,2]
[422372558,1778891440000,-500.0,0.00011232,2]
[422372553,1778891440000,-1387.51,0.00011232,2]
[422372555,1778891440000,-3378.71,0.00011232,2]
[422372552,1778891440000,-1690.65,0.00011232,2]
[422372563,1778891440000,-500.0,0.00011232,2]
[422372557,1778891440000,-500.0,0.00011232,2]
[422372565,1778891440000,-185.0,0.00011236,2]
[422372562,1778891440000,-500.0,0.00011232,2]
[422372564,1778891440000,-643.928,0.00011236,2]
[422372576,1778891440000,-1788.4428,0.000114,2]
[422372575,1778891440000,-423.9437,0.000114,2]
[422372568,1778891440000,-2119.8236,0.000114,2]
[422372572,1778891440000,-2035.86,0.000114,2]
[422372569,1778891440000,-478.09,0.000114,2]
[422372571,1778891440000,-289.33527345,0.000114,2]
[422372570,1778891440000,-386.8,0.000114,2]
[422372577,1778891440000,-1034.8648,0.000114,2]
[422372561,1778891440000,-2761.64,0.00011232,2]
[422372574,1778891440000,-1203.6378,0.000114,2]
[422372559,1778891440000,-3813.06,0.00011232,2]
[422372535,1778891440000,-500.0,0.00011232,2]
[422372551,1778891440000,-519.18,0.00011232,2]
[422372586,1778891440000,-500.0,0.00011506,2]
[422372534,1778891440000,-3620.59,0.00011232,2]
[422372528,1778891440000,-3150.27,0.00011232,2]
[422372529,1778891440000,-323.46384104,0.00011232,2]
[422372533,1778891440000,-500.0,0.00011232,2]
[422372532,1778891440000,-1175.12,0.00011232,2]
[422372530,1778891440000,-500.0,0.00011232,2]
[422372531,1778891440000,-1444.95,0.00011232,2]
[422372527,1778891440000,-1150.2,0.00011232,2]
[422372536,1778891440000,-500.0,0.00011232,2]
[422372547,1778891440000,-1590.64,0.00011232,2]
[422372546,1778891440000,-2251.32,0.00011232,2]
[422372537,1778891440000,-2272.4,0.00011232,2]
[422372542,1778891440000,-1308.38,0.00011232,2]
[422372539,1778891440000,-1491.38,0.00011232,2]
[422372538,1778891440000,-748.15,0.00011232,2]
[422372545,1778891440000,-1129.69,0.00011232,2]
[422372540,1778891440000,-1180.18,0.00011232,2]
[422372541,1778891440000,-26826.17,0.00011232,2]
[422372544,1778891440000,-5208.49,0.00011232,2]
[422372543,1778891440000,-672.72,0.00011232,2]
[422372548,1778891440000,-572.05,0.00011232,2]
[422372550,1778891440000,-2128.74,0.00011232,2]
[422372549,1778891440000,-1489.12,0.00011232,2]
[422372582,1778891440000,-500.0,0.00011506,2]
[422372628,1778891440000,-1546.40699304,0.00011506,2]
[422372578,1778891440000,-3000.0,0.000115,30]
[422372606,1778891440000,-500.0,0.00011506,2]
[422372608,1778891440000,-500.0,0.00011506,2]
[422372616,1778891440000,-1305.76,0.00011506,2]
[422372612,1778891440000,-500.0,0.00011506,2]
[422372613,1778891440000,-500.0,0.00011506,2]
[422372615,1778891440000,-500.0,0.00011506,2]
[422372607,1778891440000,-734.5,0.00011506,2]
[422372614,1778891440000,-724.26,0.00011506,2]
[422372619,1778891440000,-500.0,0.00011506,2]
[422372618,1778891440000,-518.02,0.00011506,2]
[422372621,1778891440000,-500.0,0.00011506,2]
[422372622,1778891440000,-500.0,0.00011506,2]
[422372620,1778891440000,-704.48,0.00011506,2]
[422372623,1778891440000,-872.1,0.00011506,2]
[422372626,1778891440000,-1142.83,0.00011506,2]
[422372625,1778891440000,-500.0,0.00011506,2]
[422372627,1778891440000,-5.88300696,0.00011506,2]
[422372624,1778891440000,-500.0,0.00011506,2]
[422372630,1778891440000,-500.0,0.00011506,2]
[422372629,1778891440000,-524.29,0.00011506,2]
[422372631,1778891440000,-780.15,0.00011506,2]
[422372632,1778891440000,-295.65809105,0.00011506,2]
[422372579,1778891440000,-1372.4742,0.00011506,2]
[422372610,1778891440000,-775.58,0.00011506,2]
[422372604,1778891440000,-666.24,0.00011506,2]
[422372611,1778891440000,-1244.48,0.00011506,2]
[422372609,1778891440000,-500.0,0.00011506,2]
[422372589,1778891440000,-500.0,0.00011506,2]
[422372580,1778891440000,-173.2347,0.00011506,2]
[422372617,1778891440000,-505.94,0.00011506,2]